[Event "Fagernes Chess Open 2025"]
[Site "Fagernes"]
[Date "2025.04.15"]
[Round "3.16"]
[White "Holten, Terje"]
[Black "Lien, Benjamin"]
[Result "0-1"]
[Annotator "NA RC"]
[ECO "E97"]
[WhiteElo "1566"]
[BlackElo "1733"]
[PlyCount "66"]
[EventDate "2025.04.12"]
[EventCountry "NOR"]
[SourceTitle "playchess.com"]
[Source "ChessBase"]
[SourceQuality "1"]
[TimeControl "40/6000+30:2400+30"]

1. d4 {[%emt 0:00:03]} Nf6 {[%emt 0:05:16]} 2. c4 {[%emt 0:00:08]} g6 {[%emt 0:00:10]} 3. Nc3 {[%emt 0:00:32]} Bg7 {[%emt 0:00:06]} 4. Nf3 {[%emt 0:00:28]} d6 {[%emt 0:00:40]} 5. e4 {[%emt 0:01:11]} O-O {[%emt 0:00:46]} 6. Be2 {[%emt 0:01:20]} e5 {[%emt 0:01:13]} 7. O-O {[%emt 0:02:34]} Nc6 {[%emt 0:00:11]} 8. d5 {[%emt 0:02:33]} Ne7 {[%emt 0:00:08]} 9. Be3 {[%emt 0:02:56]} Ne8 {[%emt 0:00:24]} 10. Rc1 {[%emt 0:05:06]} f5 {[%emt 0:00:59]} 11. exf5 {[%emt 0:04:24]} gxf5 {[%emt 0:00:08]} 12. Bg5 {[%emt 0:07:04]} Nf6 {[%emt 0:18:10]} 13. h3 {[%emt 0:07:45]} h6 {[%emt 0:05:38]} 14. Bxf6 {[%emt 0:01:26]} Rxf6 {[%emt 0:00:14]} 15. Qd2 {[%emt 0:05:21]} Ng6 {[%emt 0:01:11]} 16. Bd1 {[%emt 0:06:24]} Nf4 {[%emt 0:24:41]} 17. Ne2 {[%emt 0:04:04]} Nxh3+ {[%emt 0:05:15]} 18. gxh3 {[%emt 0:00:46]} Rg6+ {[%emt 0:00:19]} 19. Ng3 {[%emt 0:01:22]} e4 {[%emt 0:06:25]} 20. Nh2 {[%emt 0:05:37]} Qh4 {[%emt 0:04:43]} 21. Kh1 {[%emt 0:03:33]} Qxh3 {[%emt 0:09:59]} 22. Rg1 {[%emt 0:06:55]} Be5 {[%emt 0:01:50]} 23. Qe3 {[%emt 0:05:25]} Kh8 {[%emt 0:12:00]} 24. Rc2 {[%emt 0:01:53]} f4 {[%emt 0:03:52]} 25. Qxe4 {[%emt 0:01:44]} fxg3 {[%emt 0:00:10]} 26. fxg3 {[%emt 0:00:40]} Bf5 {[%emt 0:00:42]} 27. Qg2 {[%emt 0:00:38]} Rxg3 {[%emt 0:05:06]} 28. Qxh3 {[%emt 0:00:56]} Rxh3 {[%emt 0:00:03]} 29. Rd2 {[%emt 0:01:34]} Be4+ {[%emt 0:00:18]} 30. Rgg2 {[%emt 0:02:38]} Rxh2+ {[%emt 0:00:30]} 31. Kg1 {[%emt 0:00:09]} Rxg2+ {[%emt 0:01:03]} 32. Rxg2 {[%emt 0:00:07]} Bxg2 {[%emt 0:00:04]} 33. Kxg2 {[%emt 0:00:02]} Rf8 {[%emt 0:00:21]} 0-1

[Event "Fagernes Chess Open 2025"]
[Site "Fagernes"]
[Date "2025.04.15"]
[Round "3.17"]
[White "Johansson, Henrik"]
[Black "Vatneodegard, Marie"]
[Result "0-1"]
[Annotator "NA RC"]
[ECO "D05"]
[WhiteElo "1730"]
[BlackElo "1538"]
[PlyCount "60"]
[EventDate "2025.04.12"]
[EventCountry "NOR"]
[SourceTitle "playchess.com"]
[Source "ChessBase"]
[SourceQuality "1"]
[TimeControl "40/6000+30:2400+30"]

1. d4 {[%emt 0:00:18]} d5 {[%emt 0:00:21]} 2. Nf3 {[%emt 0:00:58]} Nf6 {[%emt 0:00:12]} 3. e3 {[%emt 0:01:08]} e6 {[%emt 0:00:32]} 4. Bd3 {[%emt 0:00:33]} c5 {[%emt 0:00:49]} 5. b3 {[%emt 0:00:53]} Nc6 {[%emt 0:01:05]} 6. Bb2 {[%emt 0:00:48]} b6 {[%emt 0:01:37]} 7. Nbd2 {[%emt 0:02:35]} Bb7 {[%emt 0:00:27]} 8. a3 {[%emt 0:02:49]} Be7 {[%emt 0:01:45]} 9. O-O {[%emt 0:01:06]} O-O {[%emt 0:02:16]} 10. Ne5 {[%emt 0:04:20]} Nxe5 {[%emt 0:05:17]} 11. dxe5 {[%emt 0:00:54]} Ne4 {[%emt 0:08:44]} 12. Nxe4 {[%emt 0:10:59]} dxe4 {[%emt 0:00:39]} 13. Bc4 {[%emt 0:04:32]} Qc7 {[%emt 0:04:40]} 14. Qg4 {[%emt 0:03:58]} Rfd8 {[%emt 0:02:41]} 15. Rfd1 {[%emt 0:01:59]} Bf8 {[%emt 0:00:54]} 16. Bf1 {[%emt 0:04:32]} Rd7 {[%emt 0:00:30]} 17. g3 {[%emt 0:01:33]} Rad8 {[%emt 0:01:17]} 18. Bg2 {[%emt 0:01:46]} g6 {[%emt 0:05:30]} 19. Rxd7 {[%emt 0:03:39]} Rxd7 {[%emt 0:08:54]} 20. Bxe4 {[%emt 0:04:44]} Bxe4 {[%emt 0:03:30]} 21. Qxe4 {[%emt 0:00:56]} Qd8 {[%emt 0:00:18]} 22. Bc3 {[%emt 0:02:34]} Rd1+ {[%emt 0:01:40]} 23. Rxd1 {[%emt 0:00:31]} Qxd1+ {[%emt 0:00:26]} 24. Kg2 {[%emt 0:00:32]} Kg7 {[%emt 0:10:28]} 25. Qd3 {[%emt 0:02:03]} Qg4 {[%emt 0:03:00]} 26. h3 {[%emt 0:03:57]} Qg5 {[%emt 0:00:56]} 27. Qd7 {[%emt 0:00:37]} Qf5 {[%emt 0:05:41]} 28. Qd3 {[%emt 0:03:06]} Qg5 {[%emt 0:00:26]} 29. f4 {[%emt 0:02:51]} Qe7 {[%emt 0:00:48]} 30. Qd6 {[%emt 0:05:31]} Qb7+ {[%emt 0:01:39]} 0-1

[Event "Fagernes Chess Open 2025"]
[Site "Fagernes"]
[Date "2025.04.15"]
[Round "3.18"]
[White "Skotheim, Havard"]
[Black "Warstad, Leif E"]
[Result "1/2-1/2"]
[Annotator "NA RC"]
[ECO "B12"]
[WhiteElo "1548"]
[BlackElo "1606"]
[PlyCount "59"]
[EventDate "2025.04.12"]
[EventCountry "NOR"]
[SourceTitle "playchess.com"]
[Source "ChessBase"]
[SourceQuality "1"]
[TimeControl "40/6000+30:2400+30"]

1. e4 {[%emt 0:00:06]} c6 {[%emt 0:00:07]} 2. d4 {[%emt 0:00:20]} d5 {[%emt 0:00:02]} 3. e5 {[%emt 0:00:16]} Bf5 {[%emt 0:00:14]} 4. Nc3 {[%emt 0:00:21]} Nd7 {[%emt 0:00:52]} 5. Be3 {[%emt 0:03:23]} e6 {[%emt 0:00:33]} 6. g4 {[%emt 0:00:44]} Bg6 {[%emt 0:00:07]} 7. Nge2 {[%emt 0:03:42]} h6 {[%emt 0:02:08]} 8. f4 {[%emt 0:01:26]} Ne7 {[%emt 0:03:18]} 9. Ng3 {[%emt 0:01:22]} f5 {[%emt 0:15:00]} 10. exf6 {[%emt 0:10:36]} Nxf6 {[%emt 0:00:42]} 11. h4 {[%emt 0:12:15]} Qc7 {[%emt 0:06:07]} 12. Bh3 {[%emt 0:07:52]} Bf7 {[%emt 0:05:40]} 13. Qf3 {[%emt 0:03:17]} Nc8 {[%emt 0:07:13]} 14. O-O-O {[%emt 0:01:28]} Bd6 {[%emt 0:00:19]} 15. Kb1 {[%emt 0:03:49]} Nb6 {[%emt 0:00:46]} 16. Bf1 {[%emt 0:03:36]} O-O-O {[%emt 0:00:24]} 17. Bd3 {[%emt 0:03:51]} Kb8 {[%emt 0:01:48]} 18. Nge2 {[%emt 0:01:43]} Rhf8 {[%emt 0:11:29]} 19. Rhf1 {[%emt 0:07:29]} Nc4 {[%emt 0:06:21]} 20. Bxc4 {[%emt 0:01:45]} dxc4 {[%emt 0:00:07]} 21. Ne4 {[%emt 0:11:37]} Nxe4 {[%emt 0:03:26]} 22. Qxe4 {[%emt 0:00:12]} Rde8 {[%emt 0:02:04]} 23. g5 {[%emt 0:08:38]} hxg5 {[%emt 0:00:27]} 24. hxg5 {[%emt 0:00:29]} Bh5 {[%emt 0:03:01]} 25. Rd2 {[%emt 0:04:14]} Bxe2 {[%emt 0:03:46]} 26. Rxe2 {[%emt 0:00:10]} Rf5 {[%emt 0:02:34]} 27. c3 {[%emt 0:00:49]} Qf7 {[%emt 0:03:31]} 28. Bd2 {[%emt 0:07:32]} Kc7 {[%emt 0:01:34]} 29. Qf3 {[%emt 0:04:18]} Re7 {[%emt 0:03:07]} 30. Ref2 {[%emt 0:00:54]} 1/2-1/2

[Event "Fagernes Chess Open 2025"]
[Site "Fagernes"]
[Date "2025.04.15"]
[Round "3.19"]
[White "Ruud, Mikael"]
[Black "Wen, Liana"]
[Result "1-0"]
[Annotator "NA RC"]
[ECO "B12"]
[WhiteElo "1588"]
[BlackElo "1404"]
[PlyCount "57"]
[EventDate "2025.04.12"]
[EventCountry "NOR"]
[SourceTitle "playchess.com"]
[Source "ChessBase"]
[SourceQuality "1"]
[TimeControl "40/6000+30:2400+30"]

1. e4 {[%emt 0:00:04]} c6 {[%emt 0:01:44]} 2. d4 {[%emt 0:00:12]} d5 {[%emt 0:00:12]} 3. e5 {[%emt 0:00:16]} Bf5 {[%emt 0:00:30]} 4. h4 {[%emt 0:00:09]} Nd7 {[%emt 0:05:14]} 5. g4 {[%emt 0:06:24]} Be4 {[%emt 0:01:55]} 6. f3 {[%emt 0:00:51]} Qc7 {[%emt 0:04:38]} 7. fxe4 {[%emt 0:04:26]} dxe4 {[%emt 0:01:00]} 8. Nc3 {[%emt 0:03:18]} O-O-O {[%emt 0:00:17]} 9. Nxe4 {[%emt 0:03:54]} Nxe5 {[%emt 0:01:20]} 10. Bf4 {[%emt 0:05:28]} Nd3+ {[%emt 0:01:44]} 11. Qxd3 {[%emt 0:00:31]} Qxf4 {[%emt 0:00:05]} 12. Ne2 {[%emt 0:00:57]} Qc7 {[%emt 0:01:57]} 13. Bh3 {[%emt 0:06:25]} e5 {[%emt 0:05:09]} 14. O-O-O {[%emt 0:01:45]} c5 {[%emt 0:03:44]} 15. d5 {[%emt 0:03:25]} Ne7 {[%emt 0:10:20]} 16. d6 {[%emt 0:03:24]} Qc6 {[%emt 0:00:11]} 17. Qc4 {[%emt 0:02:08]} Ng6 {[%emt 0:06:10]} 18. Qxf7 {[%emt 0:12:29]} Bxd6 {[%emt 0:11:41]} 19. Qe6+ {[%emt 0:01:00]} Kb8 {[%emt 0:05:00]} 20. Nxd6 {[%emt 0:01:31]} Nxh4 {[%emt 0:21:00]} 21. Qxe5 {[%emt 0:04:13]} Ng6 {[%emt 0:04:17]} 22. Qg3 {[%emt 0:03:12]} Ka8 {[%emt 0:03:07]} 23. Bg2 {[%emt 0:02:39]} Nf4 {[%emt 0:09:41]} 24. Nxf4 {[%emt 0:02:39]} Qa4 {[%emt 0:02:30]} 25. Nxb7 {[%emt 0:01:36]} Rxd1+ {[%emt 0:00:41]} 26. Rxd1 {[%emt 0:00:08]} Qxa2 {[%emt 0:01:49]} 27. Nxc5+ {[%emt 0:00:11]} Kb8 {[%emt 0:00:24]} 28. Nfe6+ {[%emt 0:00:22]} Kc8 {[%emt 0:01:35]} 29. Qc7# {[%emt 0:00:38]} 1-0

[Event "Fagernes Chess Open 2025"]
[Site "Fagernes"]
[Date "2025.04.18"]
[Round "7.1"]
[White "Stai, Sondre"]
[Black "Sivaparan, Isai"]
[Result "1/2-1/2"]
[Annotator "NA"]
[ECO "B13"]
[WhiteElo "1786"]
[BlackElo "1944"]
[PlyCount "64"]
[EventDate "2025.04.12"]
[EventCountry "NOR"]
[SourceTitle "playchess.com"]
[Source "ChessBase"]
[SourceQuality "1"]
[TimeControl "40/6000+30:2400+30"]

1. d4 {[%emt 0:00:04]} Nf6 {[%emt 0:00:09]} 2. Nc3 {[%emt 0:00:06]} d5 {[%emt 0:00:16]} 3. Bf4 {[%emt 0:00:08]} c5 {[%emt 0:01:03]} 4. e3 {[%emt 0:00:14]} cxd4 {[%emt 0:00:55]} 5. exd4 {[%emt 0:00:05]} a6 {[%emt 0:00:24]} 6. Nf3 {[%emt 0:00:59]} Nc6 {[%emt 0:01:07]} 7. Ne5 {[%emt 0:03:14]} Qb6 {[%emt 0:12:29]} 8. Nxc6 {[%emt 0:00:15]} bxc6 {[%emt 0:04:44]} 9. Na4 {[%emt 0:09:17]} Qd8 {[%emt 0:06:33]} 10. Bd3 {[%emt 0:07:04]} Bg4 {[%emt 0:02:38]} 11. f3 {[%emt 0:01:17]} Bh5 {[%emt 0:00:56]} 12. Nc5 {[%emt 0:05:31]} Qb6 {[%emt 0:08:02]} 13. O-O {[%emt 0:11:38]} e6 {[%emt 0:07:35]} 14. Nb3 {[%emt 0:11:26]} Be7 {[%emt 0:02:23]} 15. c3 {[%emt 0:09:40]} Bg6 {[%emt 0:03:59]} 16. Be5 {[%emt 0:01:57]} O-O {[%emt 0:06:03]} 17. Rb1 {[%emt 0:04:41]} Nd7 {[%emt 0:02:20]} 18. Bg3 {[%emt 0:01:14]} Rfe8 {[%emt 0:13:42]} 19. Bxg6 {[%emt 0:00:57]} hxg6 {[%emt 0:00:24]} 20. Kh1 {[%emt 0:01:09]} Nf6 {[%emt 0:04:27]} 21. Qd2 {[%emt 0:01:11]} Nh5 {[%emt 0:00:58]} 22. Bf2 {[%emt 0:00:42]} Qc7 {[%emt 0:01:49]} 23. Nc5 {[%emt 0:03:51]} Bd6 {[%emt 0:01:19]} 24. g3 {[%emt 0:00:54]} Kh7 {[%emt 0:02:45]} 25. f4 {[%emt 0:05:02]} Nf6 {[%emt 0:01:33]} 26. b4 {[%emt 0:02:41]} Bxc5 {[%emt 0:04:26]} 27. dxc5 {[%emt 0:02:38]} Ne4 {[%emt 0:00:41]} 28. Qd3 {[%emt 0:01:23]} Reb8 {[%emt 0:00:58]} 29. Bd4 {[%emt 0:02:38]} Rb7 {[%emt 0:03:24]} 30. g4 {[%emt 0:08:17]} a5 {[%emt 0:03:03]} 31. a3 {[%emt 0:00:47]} axb4 {[%emt 0:02:22]} 32. cxb4 {[%emt 0:00:13]} Rba7 {[%emt 0:00:32]} 1/2-1/2

[Event "Fagernes Chess Open 2025"]
[Site "Fagernes"]
[Date "2025.04.18"]
[Round "7.2"]
[White "Ali, Karim"]
[Black "Andersen, Guttorm"]
[Result "1-0"]
[Annotator "NA RC"]
[ECO "A13"]
[WhiteElo "1876"]
[BlackElo "1842"]
[PlyCount "55"]
[EventDate "2025.04.12"]
[EventCountry "NOR"]
[SourceTitle "playchess.com"]
[Source "ChessBase"]
[SourceQuality "1"]
[TimeControl "40/6000+30:2400+30"]

1. c4 {[%emt 0:00:44]} e6 {[%emt 0:03:27]} 2. g3 {[%emt 0:00:34]} d5 {[%emt 0:00:07]} 3. Bg2 {[%emt 0:00:13]} c6 {[%emt 0:00:03]} 4. Nf3 {[%emt 0:02:28]} Nf6 {[%emt 0:00:58]} 5. O-O {[%emt 0:00:44]} Bd6 {[%emt 0:00:58]} 6. Nc3 {[%emt 0:02:13]} e5 {[%emt 0:08:07]} 7. cxd5 {[%emt 0:07:18]} Nxd5 {[%emt 0:03:44]} 8. d4 {[%emt 0:10:06]} Nxc3 {[%emt 0:04:49]} 9. bxc3 {[%emt 0:00:30]} e4 {[%emt 0:00:06]} 10. Nd2 {[%emt 0:03:36]} f5 {[%emt 0:01:17]} 11. Qb3 {[%emt 0:06:01]} Qe7 {[%emt 0:00:26]} 12. Nc4 {[%emt 0:00:22]} Bc7 {[%emt 0:01:15]} 13. Ba3 {[%emt 0:10:25]} Qf6 {[%emt 0:03:08]} 14. f3 {[%emt 0:06:46]} b5 {[%emt 0:05:17]} 15. Ne3 {[%emt 0:03:56]} Be6 {[%emt 0:07:15]} 16. d5 {[%emt 0:01:37]} Bb6 {[%emt 0:00:14]} 17. dxe6 {[%emt 0:02:06]} Bxe3+ {[%emt 0:00:10]} 18. Kh1 {[%emt 0:00:05]} Na6 {[%emt 0:07:48]} 19. fxe4 {[%emt 0:01:20]} b4 {[%emt 0:02:41]} 20. cxb4 {[%emt 0:02:54]} Bd4 {[%emt 0:00:16]} 21. e5 {[%emt 0:01:36]} Qxe5 {[%emt 0:04:15]} 22. Bxc6+ {[%emt 0:02:08]} Ke7 {[%emt 0:00:48]} 23. b5+ {[%emt 0:04:02]} Nc5 {[%emt 0:00:21]} 24. Bxc5+ {[%emt 0:00:41]} Bxc5 {[%emt 0:03:07]} 25. Bxa8 {[%emt 0:04:51]} Rxa8 {[%emt 0:01:00]} 26. Qf3 {[%emt 0:00:07]} Rf8 {[%emt 0:01:44]} 27. Rad1 {[%emt 0:05:17]} f4 {[%emt 0:18:17]} 28. Rd7+ {[%emt 0:06:57]} 1-0

[Event "Fagernes Chess Open 2025"]
[Site "Fagernes"]
[Date "2025.04.18"]
[Round "7.3"]
[White "Arulmaran, Abishan"]
[Black "Engkvist, Tomas"]
[Result "0-1"]
[Annotator "NA RC"]
[ECO "C50"]
[WhiteElo "1858"]
[BlackElo "1969"]
[PlyCount "42"]
[EventDate "2025.04.12"]
[EventCountry "NOR"]
[SourceTitle "playchess.com"]
[Source "ChessBase"]
[SourceQuality "1"]
[TimeControl "40/6000+30:2400+30"]

1. e4 {[%emt 0:00:09]} e5 {[%emt 0:00:04]} 2. Nf3 {[%emt 0:00:40]} Nc6 {[%emt 0:00:06]} 3. Bc4 {[%emt 0:00:06]} Bc5 {[%emt 0:00:03]} 4. d4 {[%emt 0:00:05]} Bxd4 {[%emt 0:00:05]} 5. Nxd4 {[%emt 0:00:09]} Nxd4 {[%emt 0:00:05]} 6. Be3 {[%emt 0:00:08]} Nc6 {[%emt 0:00:04]} 7. Qg4 {[%emt 0:00:08]} Qf6 {[%emt 0:00:07]} 8. Nc3 {[%emt 0:00:08]} d6 {[%emt 0:07:43]} 9. Qe2 {[%emt 0:00:36]} Nge7 {[%emt 0:00:27]} 10. Nb5 {[%emt 0:01:19]} Kd8 {[%emt 0:02:39]} 11. O-O {[%emt 0:02:56]} Bd7 {[%emt 0:05:19]} 12. f4 {[%emt 0:05:53]} Qg6 {[%emt 0:01:36]} 13. f5 {[%emt 0:02:49]} Qf6 {[%emt 0:00:05]} 14. Qg4 {[%emt 0:03:08]} h6 {[%emt 0:01:48]} 15. h4 {[%emt 0:03:44]} g6 {[%emt 0:00:26]} 16. Qe2 {[%emt 0:05:02]} gxf5 {[%emt 0:02:32]} 17. exf5 {[%emt 0:00:11]} Qxh4 {[%emt 0:12:24]} 18. f6 {[%emt 0:02:22]} Nf5 {[%emt 0:00:30]} 19. Rf3 {[%emt 0:07:03]} Ng3 {[%emt 0:02:18]} 20. Qe1 {[%emt 0:01:32]} Qh1+ {[%emt 0:05:27]} 21. Kf2 {[%emt 0:00:26]} Ne4+ {[%emt 0:05:00]} 0-1

[Event "Fagernes Chess Open 2025"]
[Site "Fagernes"]
[Date "2025.04.18"]
[Round "7.4"]
[White "Hansen, Thobias Gotaas"]
[Black "Kopperud, Vidar Aleksander"]
[Result "1-0"]
[Annotator "NA"]
[ECO "B50"]
[WhiteElo "1805"]
[BlackElo "1778"]
[PlyCount "69"]
[EventDate "2025.04.12"]
[EventCountry "NOR"]
[SourceTitle "playchess.com"]
[Source "ChessBase"]
[SourceQuality "1"]
[TimeControl "40/6000+30:2400+30"]

1. e4 {[%emt 0:02:12]} c5 {[%emt 0:00:08]} 2. Nf3 {[%emt 0:00:07]} d6 {[%emt 0:00:09]} 3. c3 {[%emt 0:00:10]} Nf6 {[%emt 0:00:42]} 4. Be2 {[%emt 0:00:47]} g6 {[%emt 0:00:44]} 5. O-O {[%emt 0:01:06]} Bg7 {[%emt 0:00:24]} 6. Re1 {[%emt 0:04:52]} O-O {[%emt 0:01:36]} 7. d3 {[%emt 0:01:15]} Nc6 {[%emt 0:03:49]} 8. h3 {[%emt 0:00:27]} Bd7 {[%emt 0:13:44]} 9. Bf1 {[%emt 0:01:15]} e5 {[%emt 0:09:05]} 10. d4 {[%emt 0:03:40]} Qc7 {[%emt 0:13:53]} 11. d5 {[%emt 0:01:13]} Ne7 {[%emt 0:00:57]} 12. b4 {[%emt 0:02:46]} c4 {[%emt 0:08:48]} 13. a4 {[%emt 0:11:51]} b5 {[%emt 0:04:52]} 14. Na3 {[%emt 0:12:16]} a6 {[%emt 0:00:52]} 15. Qc2 {[%emt 0:06:10]} Rab8 {[%emt 0:02:39]} 16. Be3 {[%emt 0:01:08]} Ne8 {[%emt 0:03:01]} 17. Nd2 {[%emt 0:06:06]} f5 {[%emt 0:02:18]} 18. f3 {[%emt 0:00:14]} f4 {[%emt 0:01:47]} 19. Bf2 {[%emt 0:02:20]} g5 {[%emt 0:02:56]} 20. Reb1 {[%emt 0:01:01]} Ng6 {[%emt 0:02:25]} 21. Naxc4 {[%emt 0:03:23]} bxc4 {[%emt 0:01:02]} 22. Nxc4 {[%emt 0:00:27]} h5 {[%emt 0:02:09]} 23. Na5 {[%emt 0:05:30]} Ra8 {[%emt 0:05:52]} 24. c4 {[%emt 0:01:00]} Nf6 {[%emt 0:02:57]} 25. Qd2 {[%emt 0:09:48]} Rfb8 {[%emt 0:03:02]} 26. c5 {[%emt 0:00:54]} Bf8 {[%emt 0:01:49]} 27. c6 {[%emt 0:03:03]} Bc8 {[%emt 0:04:23]} 28. b5 {[%emt 0:01:54]} axb5 {[%emt 0:01:08]} 29. axb5 {[%emt 0:00:45]} Rb6 {[%emt 0:01:29]} 30. Bxb6 {[%emt 0:02:55]} Qxb6+ {[%emt 0:00:43]} 31. Qf2 {[%emt 0:00:32]} Rb8 {[%emt 0:01:36]} 32. Qxb6 {[%emt 0:00:25]} Rxb6 {[%emt 0:00:02]} 33. Nc4 {[%emt 0:00:28]} Rb8 {[%emt 0:00:37]} 34. b6 {[%emt 0:00:29]} Ne8 {[%emt 0:01:43]} 35. c7 {[%emt 0:04:26]} 1-0

[Event "Fagernes Chess Open 2025"]
[Site "Fagernes"]
[Date "2025.04.18"]
[Round "7.5"]
[White "Neukamm, Christian"]
[Black "Andersen, Even Jorstad"]
[Result "1-0"]
[Annotator "NA"]
[ECO "B31"]
[WhiteElo "1776"]
[BlackElo "1681"]
[PlyCount "53"]
[EventDate "2025.04.12"]
[EventCountry "NOR"]
[SourceTitle "playchess.com"]
[Source "ChessBase"]
[SourceQuality "1"]
[TimeControl "40/6000+30:2400+30"]

1. e4 {[%emt 0:00:15]} c5 {[%emt 0:01:35]} 2. Nf3 {[%emt 0:00:51]} Nc6 {[%emt 0:00:07]} 3. Bb5 {[%emt 0:00:14]} g6 {[%emt 0:00:05]} 4. O-O {[%emt 0:00:38]} Bg7 {[%emt 0:00:05]} 5. Re1 {[%emt 0:00:16]} e5 {[%emt 0:02:49]} 6. c3 {[%emt 0:10:22]} Nge7 {[%emt 0:01:29]} 7. Na3 {[%emt 0:00:30]} a6 {[%emt 0:07:03]} 8. Bc4 {[%emt 0:08:14]} O-O {[%emt 0:02:31]} 9. Nc2 {[%emt 0:01:31]} d5 {[%emt 0:09:47]} 10. exd5 {[%emt 0:04:33]} Nxd5 {[%emt 0:00:32]} 11. d4 {[%emt 0:03:59]} Nb6 {[%emt 0:02:55]} 12. Bg5 {[%emt 0:05:12]} Qd6 {[%emt 0:03:57]} 13. Bf1 {[%emt 0:07:22]} cxd4 {[%emt 0:06:27]} 14. cxd4 {[%emt 0:00:37]} exd4 {[%emt 0:04:48]} 15. Nfxd4 {[%emt 0:12:34]} h6 {[%emt 0:13:05]} 16. Be3 {[%emt 0:16:45]} Nd5 {[%emt 0:07:05]} 17. Nxc6 {[%emt 0:04:19]} bxc6 {[%emt 0:00:31]} 18. Bd4 {[%emt 0:01:33]} Be6 {[%emt 0:03:40]} 19. Bxg7 {[%emt 0:01:01]} Kxg7 {[%emt 0:00:04]} 20. Qd4+ {[%emt 0:00:42]} Kh7 {[%emt 0:01:01]} 21. Bc4 {[%emt 0:02:42]} Qc7 {[%emt 0:05:02]} 22. Rac1 {[%emt 0:01:35]} Rfd8 {[%emt 0:01:42]} 23. Qc5 {[%emt 0:06:58]} Nf4 {[%emt 0:02:23]} 24. Rcd1 {[%emt 0:02:53]} Rxd1 {[%emt 0:05:18]} 25. Rxd1 {[%emt 0:00:08]} Bxc4 {[%emt 0:08:26]} 26. Qxc4 {[%emt 0:00:09]} Nd5 {[%emt 0:01:31]} 27. Rxd5 {[%emt 0:00:43]} 1-0

[Event "Fagernes Chess Open 2025"]
[Site "Fagernes"]
[Date "2025.04.18"]
[Round "7.6"]
[White "Digernes, Mikael"]
[Black "Abrahamsson, Roaul"]
[Result "1/2-1/2"]
[Annotator "NA"]
[ECO "C55"]
[WhiteElo "1781"]
[BlackElo "1920"]
[PlyCount "106"]
[EventDate "2025.04.12"]
[EventCountry "NOR"]
[SourceTitle "playchess.com"]
[Source "ChessBase"]
[SourceQuality "1"]
[TimeControl "40/6000+30:2400+30"]

1. e4 {[%emt 0:00:06]} e5 {[%emt 0:00:18]} 2. Nf3 {[%emt 0:00:08]} Nc6 {[%emt 0:00:17]} 3. Bc4 {[%emt 0:00:15]} Nf6 {[%emt 0:00:21]} 4. d3 {[%emt 0:00:18]} Be7 {[%emt 0:00:20]} 5. O-O {[%emt 0:00:25]} O-O {[%emt 0:00:12]} 6. Re1 {[%emt 0:00:15]} d6 {[%emt 0:00:29]} 7. a3 {[%emt 0:00:08]} Na5 {[%emt 0:07:19]} 8. Ba2 {[%emt 0:00:40]} c5 {[%emt 0:00:24]} 9. c3 {[%emt 0:03:02]} b5 {[%emt 0:04:15]} 10. b4 {[%emt 0:04:41]} Nc6 {[%emt 0:06:45]} 11. Bd5 {[%emt 0:12:15]} Nxd5 {[%emt 0:05:10]} 12. exd5 {[%emt 0:00:08]} Nb8 {[%emt 0:00:03]} 13. bxc5 {[%emt 0:06:47]} dxc5 {[%emt 0:10:58]} 14. c4 {[%emt 0:04:49]} f6 {[%emt 0:06:34]} 15. Nc3 {[%emt 0:06:57]} bxc4 {[%emt 0:08:34]} 16. dxc4 {[%emt 0:00:15]} Ba6 {[%emt 0:00:32]} 17. Qd3 {[%emt 0:09:20]} Nc6 {[%emt 0:01:52]} 18. Qf5 {[%emt 0:18:04]} Bc8 {[%emt 0:10:19]} 19. Qc2 {[%emt 0:01:18]} Nd4 {[%emt 0:00:32]} 20. Nxd4 {[%emt 0:00:35]} cxd4 {[%emt 0:02:54]} 21. Ne4 {[%emt 0:04:40]} Bf5 {[%emt 0:04:19]} 22. Qe2 {[%emt 0:04:55]} Bxe4 {[%emt 0:02:03]} 23. Qxe4 {[%emt 0:00:07]} Rc8 {[%emt 0:01:27]} 24. f4 {[%emt 0:08:14]} Bd6 {[%emt 0:00:57]} 25. fxe5 {[%emt 0:00:45]} fxe5 {[%emt 0:00:30]} 26. Qg4 {[%emt 0:04:08]} Qf6 {[%emt 0:02:02]} 27. Bg5 {[%emt 0:01:41]} Qf2+ {[%emt 0:00:42]} 28. Kh1 {[%emt 0:00:06]} Qf5 {[%emt 0:00:24]} 29. Qxf5 {[%emt 0:03:54]} Rxf5 {[%emt 0:00:08]} 30. Bh4 {[%emt 0:02:29]} g5 {[%emt 0:04:24]} 31. g4 {[%emt 0:00:25]} gxh4 {[%emt 0:06:08]} 32. gxf5 {[%emt 0:00:10]} Rxc4 {[%emt 0:00:11]} 33. Rac1 {[%emt 0:08:42]} Rxc1 {[%emt 0:00:08]} 34. Rxc1 {[%emt 0:00:06]} d3 {[%emt 0:04:39]} 35. Kg2 {[%emt 0:03:41]} Bxa3 {[%emt 0:01:54]} 36. Rc8+ {[%emt 0:02:20]} Kf7 {[%emt 0:01:09]} 37. Kf3 {[%emt 0:01:14]} e4+ {[%emt 0:02:43]} 38. Ke3 {[%emt 0:00:06]} Kf6 {[%emt 0:06:43]} 39. Rc4 {[%emt 0:00:53]} Kxf5 {[%emt 0:03:52]} 40. Rxe4 {[%emt 0:00:26]} d2 {[%emt 0:00:32]} 41. Rf4+ {[%emt 0:40:41]} Ke5 {[%emt 0:40:20]} 42. Rf1 {[%emt 0:00:00]} Bb4 {[%emt 0:00:00]} 43. Ke2 {[%emt 0:00:00]} a5 {[%emt 0:00:00]} 44. d6 {[%emt 0:00:00]} Kxd6 {[%emt 0:00:00]} 45. Rf4 {[%emt 0:00:00]} Kc5 {[%emt 0:00:00]} 46. Rxh4 {[%emt 0:00:00]} a4 {[%emt 0:00:00]} 47. Rxh7 {[%emt 0:00:00]} Kc4 {[%emt 0:00:00]} 48. Rh4+ {[%emt 0:00:00]} Kb3 {[%emt 0:00:00]} 49. Rxb4+ {[%emt 0:00:00]} Kxb4 {[%emt 0:00:00]} 50. Kxd2 {[%emt 0:00:00]} Kb3 {[%emt 0:00:00]} 51. Kc1 {[%emt 0:00:00]} a3 {[%emt 0:00:00]} 52. Kb1 {[%emt 0:00:00]} a2+ {[%emt 0:00:00]} 53. Ka1 {[%emt 0:00:00]} Kc3 {[%emt 0:00:00]} 1/2-1/2